Cogmind - Beta 13 @@@ ROGUE MODE // 2024.04.01 @ 19:11:35 Player: Olafz Result: Destroyed by S-10 Pest with Light Assault Rifle Performance ------------- Evolutions (0) 0 Regions Visited (2) 400 Robots Destroyed (19) 95 Value Destroyed (317) 317 Prototype IDs (0) 0 Alien Tech Used (0) 0 Bonus (0) 0 TOTAL SCORE: 812 Bonus ------- None Cogmind --------- Core Integrity 0/250 Matter 285/300 Energy 100/100 System Corruption 0% Temperature Cool (0) Movement Flying (120) Ox1 Location -10/Mines Parts ------- > --- POWER (1) -------- (None) > --- PROPULSION (2) --- Flight Unit > --- UTILITY (2) ------ Small Storage Unit > --- WEAPON (2) ------- Light Assault Rifle > --- INVENTORY (8) ---- Light Nuclear Core Flight Unit Flight Unit Datajack Mining Laser Peak State ------------ > --- POWER ------------ Ion Engine > --- PROPULSION ------- Wheel Compact Wheel > --- UTILITY ---------- Small Storage Unit > --- WEAPON ----------- Medium Laser Light Assault Rifle > --- INVENTORY -------- (None) [Rating: 6] Favorites ----------- Power Ion Engine Engine Ion Engine Propulsion Wheel Wheel Wheel Flight Unit Flight Unit Utility Small Storage Unit Storage Small Storage Unit Weapon Light Assault Rifle Energy Gun Medium Laser Ballistic Gun Light Assault Rifle Build | -11 -10 -10 ------- Run | Yrd Mat Min Slots Evolved . | . . . Power . | . . . Propulsion . | . . . Utility . | . . . Weapon . | . . . Parts Attached 13 | 6 1 6 Power 1 | 1 . . Engine 1 | 1 . . Core . | . . . Reactor . | . . . Propulsion 8 | 2 1 5 Treads . | . . . Leg . | . . . Wheel 3 | 2 1 . Hover . | . . . Flight 5 | . . 5 Utility 1 | 1 . . Device . | . . . Storage 1 | 1 . . Processor . | . . . Hackware . | . . . Protection . | . . . Artifact . | . . . Weapon 3 | 2 . 1 Energy Gun 1 | 1 . . Energy Cannon . | . . . Ballistic Gun 2 | 1 . 1 Ballistic Cannon . | . . . Launcher . | . . . Special Weapon . | . . . Impact Weapon . | . . . Slashing Weapon . | . . . Piercing Weapon . | . . . Special Melee Weapon . | . . . Unidentified Prototypes . | . . . Parts Lost 4 | . . 4 Power . | . . . Propulsion 3 | . . 3 Utility . | . . . Weapon 1 | . . 1 Highest Loss Streak 3 | . . 3 To Critical Strikes . | . . . Average Slot Usage (%) 74 | . 85 69 Engine 7 | . 14 4 Wheel 14 | . 28 7 Flight 10 | . . 15 Storage 14 | . 14 14 Energy Gun 13 | . 14 13 Ballistic Gun 14 | . 14 14 Naked Turns . | . . . Heaviest Build 13 | 13 13 13 Greatest Support 26 | 26 26 20 Greatest Overweight (x) 4 | . . 4 Average Overweight (x) . | . . . Largest Inventory Capacity 8 | 8 8 8 Average Capacity 7 | 7 8 8 Most Carried 7 | 1 5 7 Average Carried 3 | . 2 4 Final Capacity 8 | 8 8 8 Final Carried 5 | 1 5 5 Class Distribution -------------------- 100% | Mutant Dominant Class ---------------- Mutant | -10/Materials Mutant | -10/Mines Resources | -11 -10 -10 ----------- Run | Yrd Mat Min Matter Collected 365 | 130 149 86 Remotely . | . . . Salvage Created 623 | . 79 544 Parts 38 | . 5 33 Haulers Intercepted . | . . . Recyclers Shooed 3 | . 1 2 Parts Field Recycled . | . . . Retrieved Matter . | . . . Parts Self-Destructed . | . . . Prevented . | . . . Kills | -11 -10 -10 ------- Run | Yrd Mat Min Combat Hostiles Destroyed 13 | . 1 12 Guns 13 | . 1 12 Classes Destroyed 7 | . 3 4 Worker 1 | . 1 . Builder 1 | . . 1 Tunneler 1 | . . 1 Recycler 2 | . . 2 Operator 1 | . 1 . Swarmer 8 | . . 8 Grunt 5 | . 1 4 Best Kill Streak 6 | . 2 6 Combat Bots Only 3 | . 1 3 Max Kills in Single Turn 2 | . 1 2 Gunslinging 1 | . . 1 Exploded . | . . . Melee . | . . . Uniques/NPCs Destroyed . | . . . Combat | -11 -10 -10 -------- Run | Yrd Mat Min Hostile Shots Fired 84 | . 4 80 Missed 22 | . 2 20 Damage Taken 589 | 1 24 564 Core 250 | . 11 239 Absorbed by Shields . | . . . Core Remaining (%) 100 | 100 . . Volleys Fired 71 | . 14 57 Largest 2 | . 2 2 Hottest 70 | . 70 70 Shots Fired 131 | . 28 103 Gun 131 | . 28 103 Cannon . | . . . Launcher . | . . . Special . | . . . Kinetic 71 | . 14 57 Thermal 60 | . 14 46 Explosive . | . . . Electromagnetic . | . . . Robot Hit Streak 9 | . 7 9 Robot Miss Streak 5 | . 2 5 Penetration Max . | . . . Secondary Targets 4 | . . 4 Max Gunslinging Chain 1 | . . 1 Shots Hit Robots 71 | . 18 53 Core Hits 33 | . 7 26 Critical Kills . | . . . Critical Parts Destroyed . | . . . Critical Strikes 2 | . . 2 Burn 2 | . . 2 Melee Attacks . | . . . Impact . | . . . Slashing . | . . . Piercing . | . . . Sneak Attacks . | . . . Combat Hostiles . | . . . Follow-up Attacks . | . . . Damage Inflicted 744 | 3 185 556 Guns 736 | . 180 556 Cannons . | . . . Explosions . | . . . Melee . | . . . Ramming 8 | 3 5 . Kinetic 248 | . 68 180 Thermal 488 | . 112 376 Explosive . | . . . Electromagnetic . | . . . Impact . | . . . Slashing . | . . . Piercing . | . . . Highest Corruption . | . . . Average Corruption . | . . . Corruption Purged . | . . . Corruption Blocked . | . . . Overload Shots . | . . . Overflow Damage . | . . . Projectiles . | . . . Explosions . | . . . Melee . | . . . Knockbacks . | . . . Impact . | . . . Kinetic . | . . . Secondary . | . . . Self-Inflicted Damage 3 | 1 2 . Shots . | . . . Rammed 2 | 1 1 . Targets Rammed 2 | 1 1 . Kicked . | . . . Crushed . | . . . Highest Temperature 140 | . 82 140 Average Temperature 41 | . 32 44 Received Heat Transfer 129 | . 12 117 Siege Activations . | . . . Robots Corrupted . | . . . Combat Hostiles . | . . . Parts Fried . | . . . Impact Corruptions . | . . . Robots Melted . | . . . Combat Hostiles . | . . . Parts Melted . | . . . Heat Transferred 1591 | . 333 1258 Parts Sabotaged . | . . . Parts Stolen . | . . . Parts Stripped . | . . . Power Chain Reactions . | . . . Alert | -11 -10 -10 ------- Run | Yrd Mat Min Peak Influence 285 | . 40 285 Initial 15 | . . 15 Average 86 | . 15 134 Maximum Alert Level 1 | . . 1 Low Security (%) 82 | 100 100 71 Level 1 17 | . . 28 Level 2 . | . . . Level 3 . | . . . Level 4 . | . . . Level 5 . | . . . High Security . | . . . Max Security . | . . . Squads Dispatched 1 | . 1 . Investigation . | . . . Extermination . | . . . Reinforcement 1 | . 1 . Assault . | . . . Garrison . | . . . Intercept . | . . . Searches Triggered . | . . . Construction Impeded . | . . . Haulers Reinforced . | . . . Active Scanning Responses . | . . . Cargo Convoy Interrupts . | . . . Stealth | -11 -10 -10 --------- Run | Yrd Mat Min Distress Signals . | . . . Communications Jammed . | . . . Distress Signals . | . . . Times Spotted 17 | . 3 14 Peak Tracking Total 3 | . 1 3 Tactical Retreats . | . . . Traps | -11 -10 -10 ------- Run | Yrd Mat Min Traps Triggered . | . . . Indirectly . | . . . Trap Hack Attempts . | . . . Triggered . | . . . Disarmed . | . . . Reprogrammed . | . . . Reused . | . . . Traps Extracted . | . . . Installed . | . . . Triggered . | . . . Machines | -11 -10 -10 ---------- Run | Yrd Mat Min Machines Disabled . | . . . Max in Single Turn . | . . . Machines Repaired . | . . . Machines Dismantled . | . . . Machines Sabotaged . | . . . Overloaded Fab Kills . | . . . Hacking | -11 -10 -10 --------- Run | Yrd Mat Min Machines Accessed . | . . . Terminals . | . . . Fabricators . | . . . Repair Stations . | . . . Recycling Units . | . . . Scanalyzers . | . . . Garrison Access . | . . . Total Hacks . | . . . Successful . | . . . Failed . | . . . Catastrophic . | . . . Database Lockouts . | . . . Manual . | . . . Terminals . | . . . Fabricators . | . . . Repair Stations . | . . . Recycling Units . | . . . Scanalyzers . | . . . Garrison Access . | . . . Terminal Hacks . | . . . Fabricator Hacks . | . . . Repair Station Hacks . | . . . Recycling Unit Hacks . | . . . Scanalyzer . | . . . Garrison Access Hacks . | . . . Unauthorized Hacks . | . . . Terminals . | . . . Fabricators . | . . . Repair Stations . | . . . Recycling Units . | . . . Scanalyzers . | . . . Garrison Access . | . . . Data Cores Recovered . | . . . Used . | . . . Hacking Detections . | . . . Full Trace Events . | . . . Feedback Events . | . . . Feedback Blocked . | . . . Robot Schematics Acquired . | . . . Robots Built . | . . . Authchips . | . . . Time . | . . . Total Robot Build Rating . | . . . Part Schematics Acquired . | . . . Parts Built . | . . . Authchips . | . . . Time . | . . . Total Part Build Rating . | . . . Parts Repaired . | . . . Time . | . . . Parts Recycled . | . . . Recycled Matter . | . . . Retrieved Matter . | . . . Retrieved Components . | . . . Parts Scanalyzed . | . . . Part Schematics Acquired . | . . . Parts Damaged . | . . . Bothacking | -11 -10 -10 ------------ Run | Yrd Mat Min Used RIF Installer . | . . . Robots Hacked . | . . . Non-combat . | . . . Combat . | . . . Robot Hacks Applied . | . . . Relay Couplers Released . | . . . Fabnet Peak Effective % . | . . . Robots Rewired . | . . . Allies Hacked . | . . . Hacks Repelled . | . . . Allies | -11 -10 -10 -------- Run | Yrd Mat Min Total Allies . | . . . Largest Group . | . . . Highest-Rated Group . | . . . Highest-Rated Ally . | . . . Total Orders . | . . . Ally Attacks . | . . . Total Damage . | . . . Kills . | . . . Allies Corrupted . | . . . Allies Melted . | . . . Intel | -11 -10 -10 ------- Run | Yrd Mat Min Robot Analysis Total . | . . . Derelict Logs Recovered 1 | . . 1 Drone Launches . | . . . Drone Recoveries . | . . . Exploration | -11 -10 -10 ------------- Run | Yrd Mat Min Turns Passed 553 | 55 159 339 Spaces Moved 526 | 50 134 342 Core 3 | 2 . 1 Treads . | . . . Legs . | . . . Wheels 258 | 48 134 76 Hover . | . . . Flight 265 | . . 265 Fastest Speed 37 | 50 80 37 Average Speed 62 | 88 85 49 Slowest Speed 280 | 100 90 280 Overloaded Moves . | . . . Propulsion Burnouts . | . . . Robots Hopped . | . . . Cave-ins Triggered . | . . . Exploration Rate (%) 32 | 3 32 63 Regions Visited 2 Branch Regions 1 Pre-discovered Areas . | . . . Known Exits Taken . | . . . Unknown Exits Taken 2 | 1 1 . Scrap Searched . | . . . Spaces Dug . | . . . Terrain Destroyed . | . . . Melee . | . . . Projectile . | . . . AOE . | . . . Terrain Rammed . | . . . Walls Destroyed . | . . . Machines Disabled . | . . . Actions | -11 -10 -10 --------- Run | Yrd Mat Min Total 631 | 57 152 422 Wait . | . . . Move 525 | 50 133 342 Hop . | . . . Pick Up 9 | 1 3 5 Fast Attach 9 | 6 . 3 Attach 1 | . . 1 Detach 3 | . . 3 Swap 3 | . 1 2 Drop 9 | . . 9 Fire 71 | . 14 57 Melee . | . . . Ram 1 | . 1 . Kick . | . . . Crush . | . . . Escape Stasis . | . . . Rewire . | . . . Trap . | . . . Miscellaneous . | . . . Route ------- -11/Scrapyard -10/Materials -10/Mines History --------- Turn | Location | Event 13 | -11/Scrapyard | Discovered new exit (range 15) 56 | -11/Scrapyard | Entered Materials 200 | -10/Materials | Discovered new exit (range 11) 215 | -10/Materials | Entered Mines 300 | -10/Mines | Build established: Mutant 346 | -10/Mines | Learned location of 1 exit from Materials 352 | -10/Mines | Met a Derelict bent on vengeance 504 | -10/Mines | Core integrity fell below 50% 547 | -10/Mines | Core integrity fell below 20% 554 | -10/Mines | Destroyed by S-10 Pest with Light Assault Rifle Last Messages --------------- 00473_ Acquired Flight Unit. 00476_ Acquired 12 matter. 00479_ Acquired 17 matter. 00500_ G-34 Mercenary destroyed. 00500_ Switching to secondary target: G-47 Trooper. 00501_ Flight Unit destroyed. 00503_ S-10 Pest destroyed. 00507_ Critical hit (Burn: +37). 00508_ G-47 Trooper destroyed. 00514_ Acquired 13 matter. 00516_ Acquired Flight Unit. 00519_ Dropped Lgt. Assault Rifle. 00520_ Acquired Lgt. Nuclear Core. 00521_ Dropped Lgt. Ion Engine. 00529_ Flight Unit destroyed. 00534_ Med. Laser destroyed. 00535_ R-06 Scavenger collects Lgt. Ion Engine. 00539_ R-06 Scavenger collects Lgt. Assault Rifle. 00541_ S-10 Pest destroyed. 00542_ R-06 Scavenger collects Aluminum Leg. Map ----- +----------------------------------------------------+ | #### #??????????????????????? | | ## ##?????????????????????? | | ## #?????????????????????? | | #### #?????????????????????? | | #??## ##?????????????????????? | | ##??# ##??????????????????????? | | ### #######???????????????????????? | | ##?????????????????????????????? | | ##??????????????????????????????? | | #???????????????????????????????? | | ##???????????????????????????????? | | ##????????????????????????????????? | | ## ##?????????????????????????????????? | | ?## #??????????????????????????????????? | | ??#####??????????????????????????????????? | | ?????????????????????????????????????????? | | ?????????????????????????????????????????? | | ?????????????????????????????????????????? | | ?????????????????????????????????????????? | | ????##????????????## #######?????????????? | | ???## ??????????? #?????????????? | | ???# ?????????? #?????????????? | | ???# #?????????""" """ss#?????????????? | | ????# #????????""" """ #?????????????? | | ????# #????# """ """ #?????????????? | | ####?# ????# =% @ #?????????????? | | #??# #?????######## ##?????????????? | | ## #????# ####????????# #??????????????? | | ?# #?????# ########## #??????????????? | | ?# #?????# !*[%* #??????????????? | | ?# #?????## ###########??????????????? | | ?# #??????## #????????????????????????? | | ?# #???????## #????????????????????????? | | ## ########## #????????????????????????? | | =% #????????????????????????? | | %[= ##????????????????????????? | | ################?????????????????????????? | | ?????????????????????????????????????????? | | ?????????????????????????????????????????? | | ?????????????????????????????????????????? | | | | | | | | | | | | | | | | | | | | | +----------------------------------------------------+ Best States ------------- Heat Dissipation 25 Energy Generation 10 Energy Capacity 250 Matter Stores 300 Matter Capacity 300 Sight Range 16 Terrain Scan Density 10 Evasion (%) 62 Item Schematics ----------------- None Robot Schematics ------------------ None Fabricated ------------ Nothing Alien Tech Used ----------------- None Achievements -------------- None Challenges ------------ None Game ------ Seed EnhancedTractorNanoactuators Manual? 0 Play Time 00:09:43 Cumulative 10.0 hours Start 2024.04.01 @ 19:03:24 End 2024.04.01 @ 19:11:35 Sessions 1 Manual Loads 0 Difficulty Rogue Special Mode None Game No. 28 Rogue 26 Adventurer 2 Explorer 0 Win Type - Total 0 Types 0/0/0/0/0/0/0/0/0 Lore% 14 Gallery% 16 Achievement% 16 Wizard Run 0 Options --------- Layout 0 ASCII 0 Keyboard 1 Movement Arrows Keybinds 0 Fullscreen 2 Font 18/SmallcapsGlow Map View 76x50 Zoom Use 0% Tactical HUD 1 Map Filters NONE Filters NONE Steam 1 RUN: 9007231a-dd20-49d5-b874-40fee92350bb